bitfinex-derivatives/quotes_SOLF0:USTF0_20240816
["timestamp","ask_amount","ask_price","bid_price","bid_amount"]
[1723832441735,3.5847,139.46,139.41,51.66]
[1723832441895,0.05030424,139.45,139.43,0.05219966]
[1723832442288,3.5849,139.46,139.43,0.05219966]
[1723832442494,0.0480355,139.45,139.43,0.05219966]
[1723832442683,0.0480355,139.45,139.34,1.3121]
[1723832442684,6.5,139.44,139.34,1.3121]
[1723832442890,1.3526,139.43,139.35,51.66]
[1723832443109,53.0126,139.43,139.33,51.66]
[1723832443400,1.3526,139.43,139.33,51.66]
[1723832443587,1.3526,139.43,139.35,51.66]
[1723832443588,6.5,139.42,139.35,51.66]
[1723832443785,3.5869,139.38,139.34,3.5877]
[1723832444087,0.05519783,139.4,139.37,0.05442559]
[1723832444406,62.02,139.39,139.27,62.02]
[1723832444591,62.02,139.39,139.26,1.3121]
[1723832444789,3.5882,139.33,139.28,3.5891]
[1723832445007,6.5,139.33,139.28,3.5891]
[1723832445600,0.05425669,139.32,139.29,0.05317853]
[1723832447000,3.5888,139.31,139.29,0.05317853]
[1723832447190,0.05425669,139.32,139.29,0.05317853]
[1723832447390,0.05425669,139.32,139.21,62.02]
[1723832447604,62.02,139.31,139.21,62.02]
[1723832448094,62.02,139.31,139.18,62.02]
[1723832448393,6.35028652,139.33,139.18,62.02]
[1723832448592,0.05241603,139.26,139.23,62.0661723]
[1723832448802,0.05241603,139.26,139.25,65.6101]
[1723832449005,0.05241603,139.26,139.25,62.02]
[1723832449293,7.16971534,139.29,139.25,65.6099]
[1723832449487,3.5892,139.29,139.25,65.6099]
[1723832449691,0.05509533,139.27,139.25,62.02]
[1723832450117,0.05509533,139.27,139.26,3.5898]
[1723832450290,6.52,139.32,139.25,62.02]
[1723832450492,10.20073241,139.32,139.28,62.02]
[1723832450891,10.20073241,139.32,139.26,62.02]
[1723832451286,3.5888,139.3,139.26,65.6096]
[1723832451596,3.68073241,139.32,139.26,62.02]
[1723832451792,6.57366509,139.3,139.28,0.05018642]
[1723832451987,3.5892,139.29,139.28,0.05018642]
[1723832452253,3.61810838,139.32,139.28,0.05018642]
[1723832452254,3.60087416,139.36,139.28,62.07018642]
[1723832452389,2.6199,139.39,139.32,62.02]
[1723832452584,3.5874,139.36,139.32,62.02]
[1723832452797,6.17697053,139.39,139.31,3.5884]
[1723832453309,6.17697053,139.39,139.3,3.5887]
[1723832453495,0.05067609,139.36,139.34,0.05467048]
[1723832454087,3.5875,139.35,139.34,0.05467048]
[1723832454323,0.05067609,139.36,139.29,3.589]
[1723832454493,3.588,139.34,139.29,3.589]
[1723832454688,0.05067609,139.36,139.29,3.589]
[1723832454899,6.52,139.38,139.29,3.589]
[1723832455097,6.52,139.38,139.3,3.5888]
[1723832455502,0.049128,139.35,139.33,0.0536095]
[1723832455695,3.5878,139.34,139.33,0.0536095]
[1723832459205,0.049128,139.35,139.28,3.5892]
[1723832459408,0.26384499,139.37,139.25,62.02]
[1723832459701,3.589,139.3,139.25,62.02]
[1723832460003,13.75792417,139.3,139.26,3.5897]
[1723832460397,0.05126223,139.29,139.26,3.63762691]
[1723832460601,0.05126223,139.29,139.26,0.04792691]
[1723832461097,3.5896,139.27,139.26,0.04792691]
[1723832461734,1.3187,139.28,139.16,6.52]
[1723832461907,1.3187,139.28,139.14,1.2829]
[1723832462294,3.5902,139.25,139.21,3.591]
[1723832462502,10.1102,139.25,139.21,3.591]
[1723832462704,6.52,139.25,139.14,1.3844]
[1723832462904,3.63771145,139.24,139.22,0.04595204]
[1723832463101,0.04731145,139.24,139.22,0.04595204]
[1723832463607,0.04731145,139.24,139.23,65.6106]
[1723832464018,0.04731145,139.24,139.23,62.02]
[1723832464303,0.04731145,139.24,139.22,0.04595204]
[1723832464599,3.63781145,139.24,139.22,0.04595204]
[1723832464910,6.56731145,139.24,139.22,0.04595204]
[1723832465399,3.5906,139.23,139.22,0.04595204]
[1723832465602,3.58189752,139.23,139.22,0.04595204]
[1723832465809,6.56731145,139.24,139.22,0.04595204]
[1723832466404,3.5906,139.23,139.22,0.04595204]
[1723832466592,6.56731145,139.24,139.22,51.74595204]
[1723832466791,3.61673599,139.26,139.23,3.5905]
[1723832466992,3.5897,139.27,139.25,51.7]
[1723832467298,3.51653049,139.26,139.25,51.7]
[1723832467601,6.52,139.34,139.25,51.7]
[1723832467888,6.52,139.34,139.27,51.7]
[1723832468077,0.04810132,139.31,139.28,0.04572529]
[1723832468328,3.60672059,139.3,139.28,0.04572529]
[1723832468606,0.04810132,139.31,139.28,0.04572529]
[1723832468998,3.68713697,139.31,139.28,0.04572529]
[1723832469302,3.5891,139.29,139.28,0.04572529]
[1723832469697,10.0691,139.29,139.28,0.04572529]
[1723832470605,3.68713697,139.31,139.28,0.04572529]
[1723832470901,3.68713697,139.31,139.3,51.7]
[1723832471159,6.48,139.36,139.3,51.7]
[1723832471301,6.48,139.36,139.26,51.7]
[1723832471302,10.15673656,139.36,139.32,51.7]
[1723832471732,1.3784,139.39,139.35,3.5874]
[1723832471909,6.48,139.39,139.37,51.7]
[1723832472504,6.52549572,139.39,139.37,51.75229167]
[1723832473008,3.52974055,139.42,139.37,51.75229167]
[1723832473310,3.52974055,139.42,139.39,55.2863]
[1723832473507,3.52974055,139.42,139.39,51.7]
[1723832473705,6.48,139.45,139.39,51.7]
[1723832473904,6.48,139.45,139.38,65.5465]
[1723832474341,3.63276974,139.43,139.38,61.96]
[1723832474501,0.04716974,139.43,139.4,0.04861501]
[1723832475209,62.00716974,139.43,139.31,63.2417]
[1723832475507,61.96,139.41,139.29,61.96]
[1723832475708,6.48,139.4,139.29,61.96]
[1723832475901,6.48,139.4,139.3,3.5886]
[1723832476100,6.48,139.4,139.29,61.96]
[1723832476415,3.5875,139.35,139.34,0.04946107]
[1723832476610,7.26142935,139.35,139.34,0.04946107]
[1723832476913,13.74142935,139.35,139.34,0.04946107]
[1723832477609,10.0675,139.35,139.34,0.04946107]
[1723832477908,3.57382231,139.36,139.34,0.04946107]
[1723832478107,6.52984926,139.36,139.34,0.04946107]
[1723832478612,3.5875,139.35,139.34,0.04946107]
[1723832479623,3.5885,139.31,139.27,61.96]
[1723832479921,10.01584302,139.36,139.27,61.96]
[1723832480211,3.5887,139.31,139.27,65.5495]
[1723832480403,10.01584302,139.36,139.27,61.96]
[1723832480705,3.5892,139.29,139.25,3.5901]
[1723832480902,6.48,139.31,139.24,62.0625]
[1723832481103,6.48,139.31,139.27,61.96]
[1723832481603,6.48,139.31,139.26,0.04982014]
[1723832481604,0.05284111,139.29,139.26,0.04982014]
[1723832482310,3.5893,139.28,139.26,0.04982014]
[1723832482504,0.05284111,139.29,139.26,0.04982014]
[1723832483514,3.5896,139.27,139.26,0.04982014]
[1723832483843,0.05284111,139.29,139.26,0.04982014]
[1723832484039,0.05284111,139.29,139.26,62.00982014]
[1723832486408,0.00024111,139.29,139.28,3.5893]
[1723832486808,0.00024111,139.29,139.26,62.00982014]
[1723832488103,0.00024111,139.29,139.26,0.04982014]
[1723832489805,3.5893,139.28,139.26,0.04982014]
[1723832490113,0.00024111,139.29,139.26,0.04982014]
[1723832490907,3.5896,139.28,139.26,0.04982014]
[1723832491213,6.48024111,139.29,139.26,0.04982014]
[1723832491713,3.5896,139.27,139.26,0.04982014]
[1723832494503,1.6102,139.27,139.26,0.04982014]
[1723832497016,0.00024111,139.29,139.26,62.00982014]
[1723832497401,0.00024111,139.29,139.28,61.96]
[1723832497536,2.5946,139.37,139.28,61.96]
[1723832497818,6.48,139.36,139.29,61.96]
[1723832498114,3.588,139.33,139.3,51.7]
[1723832498317,6.48,139.36,139.3,51.7]
[1723832498520,3.5885,139.31,139.27,55.2895]
[1723832498817,3.5885,139.31,139.28,0.05176425]
[1723832499019,0.05219333,139.3,139.28,0.05176425]
[1723832499522,3.64109333,139.3,139.28,0.05176425]
[1723832499724,0.05219333,139.3,139.29,51.7]
[1723832500029,0.05219333,139.3,139.29,65.6291]
[1723832500410,3.5871,139.37,139.32,3.5883]
[1723832500719,7.8183,139.39,139.3,62.04]
[1723832501012,3.588,139.34,139.3,62.04]
[1723832501218,7.16835516,139.34,139.3,62.04]
[1723832501521,0.05526639,139.33,139.31,0.04712768]
[1723832501721,3.64336639,139.33,139.31,0.04712768]
[1723832502123,0.05526639,139.33,139.31,0.04712768]
[1723832502814,3.64326639,139.33,139.31,0.04712768]
[1723832503010,0.05526639,139.33,139.31,0.04712768]
[1723832503219,0.05526639,139.33,139.32,3.5883]
[1723832503423,1.3236,139.42,139.32,62.04]
[1723832503692,3.66937943,139.41,139.36,62.04]
[1723832503841,1.2846,139.44,139.37,3.5868]
[1723832504148,4.92395525,139.44,139.37,3.5868]
[1723832504331,1.2846,139.44,139.37,3.5868]
[1723832504523,6.46,139.45,139.39,62.04]
[1723832504727,0.05172951,139.42,139.39,62.08825132]
[1723832505224,0.05172951,139.42,139.4,3.5861]
[1723832505422,0.05172951,139.42,139.39,62.08825132]
[1723832505755,0.05172951,139.42,139.41,65.626]
[1723832506819,0.05172951,139.42,139.41,62.04]
[1723832507018,0.05172951,139.42,139.39,62.08825132]
[1723832507846,0.05172951,139.42,139.4,3.5861]
[1723832508018,0.05172951,139.42,139.39,62.08825132]
[1723832508621,0.05172951,139.42,139.39,65.67455132]
[1723832509512,0.05172951,139.42,139.4,3.5862]
[1723832509711,0.05172951,139.42,139.39,62.08825132]
[1723832510718,0.05172951,139.42,139.4,3.5862]
[1723832512422,0.05172951,139.42,139.41,3.586]
[1723832512817,0.05172951,139.42,139.4,3.5861]
[1723832513225,0.05172951,139.42,139.39,62.08825132]
[1723832513524,0.05172951,139.42,139.41,3.586]
[1723832516227,0.05172951,139.42,139.41,65.626]
[1723832516531,7.7979,139.52,139.41,62.04]
[1723832516731,3.61888043,139.51,139.48,62.04]
[1723832517026,3.57614331,139.51,139.45,62.04]
[1723832517250,1.3078,139.53,139.45,62.04]
[1723832517528,1.3078,139.53,139.46,3.5846]
[1723832517529,3.5837,139.5,139.46,3.5846]
[1723832517726,4.81975061,139.53,139.48,0.0482717]
[1723832517929,3.5839,139.49,139.48,0.0482717]
[1723832518224,62.04,139.52,139.4,62.04]
[1723832518528,68.48,139.5,139.39,3.5863]
[1723832518731,1.3299,139.49,139.38,62.04]
[1723832519021,3.5856,139.43,139.39,3.5864]
[1723832519223,62.04,139.47,139.35,62.04]
[1723832519425,1.35760482,139.42,139.4,0.04649649]
[1723832519841,1.3112,139.42,139.4,0.04649649]
[1723832520018,7.09866785,139.41,139.4,0.04649649]
[1723832520222,3.51266785,139.41,139.4,0.04649649]
[1723832520424,0.05359487,139.42,139.4,0.04649649]
[1723832520926,3.53344883,139.41,139.4,0.04649649]
[1723832521626,0.05359487,139.42,139.4,0.04649649]
[1723832522025,3.586,139.41,139.4,0.04649649]
[1723832522225,7.7816,139.41,139.35,3.5874]
[1723832522421,9.1738,139.41,139.35,3.5874]
[1723832522645,3.5864,139.4,139.35,3.5874]
[1723832522829,3.5864,139.4,139.36,3.5872]
[1723832523022,3.5864,139.4,139.36,55.2572]
[1723832523230,3.63949433,139.39,139.37,0.05067881]
[1723832523439,0.05279433,139.39,139.37,0.05067881]
[1723832523634,0.05279433,139.39,139.32,51.67]
[1723832523838,0.05279433,139.39,139.3,55.2586]
[1723832524030,64.50103435,139.41,139.27,51.67]
[1723832524031,51.67,139.38,139.27,51.67]
[1723832524592,0.2638188,139.37,139.27,51.67]
[1723832524744,0.04764027,139.33,139.31,0.04966254]
[1723832525036,3.63541404,139.33,139.31,0.04966254]
[1723832525229,3.61228249,139.32,139.31,0.04966254]
[1723832526138,7.20058249,139.32,139.31,0.04966254]
[1723832526472,0.04721404,139.33,139.25,51.67]
[1723832526686,3.5889,139.3,139.26,3.5898]
[1723832527052,6.44,139.32,139.28,51.67]
[1723832527240,3.5879,139.34,139.31,51.67]
[1723832527539,3.63498425,139.34,139.31,51.72080422]
[1723832527741,3.60795693,139.33,139.31,51.72080422]
[1723832528044,3.63498425,139.34,139.31,51.72080422]
[1723832528440,7.19589805,139.34,139.31,51.72080422]
[1723832528845,3.60799805,139.34,139.31,51.72080422]
[1723832529448,0.04708425,139.34,139.33,51.67]
[1723832530240,6.44,139.36,139.33,103.34]
[1723832530445,1.2873,139.39,139.35,51.67]
[1723832530651,6.44,139.41,139.36,3.5871]
[1723832530949,6.44,139.41,139.35,51.67]
[1723832530950,1.3316,139.44,139.38,51.67]
[1723832531337,3.63511963,139.42,139.4,0.05192827]
[1723832531542,0.04931963,139.42,139.4,0.05192827]
[1723832531894,3.586,139.41,139.4,0.05192827]
[1723832532147,0.04931963,139.42,139.4,0.05192827]
[1723832532544,0.04931963,139.42,139.41,61.98]
[1723832532950,0.04931963,139.42,139.4,3.63802827]
[1723832533751,3.586,139.41,139.4,0.05192827]
[1723832534474,0.04931963,139.42,139.4,0.05192827]
[1723832535081,3.586,139.41,139.4,0.05192827]
[1723832535646,1.3213,139.41,139.33,61.98]
[1723832536072,3.5866,139.39,139.34,3.5876]
[1723832536252,1.3213,139.41,139.35,61.98]
[1723832536560,3.5868,139.38,139.35,61.98]
[1723832536755,3.55133553,139.38,139.37,0.04748315]
[1723832536973,1.3213,139.41,139.32,61.98]
[1723832537179,0.04878451,139.39,139.36,0.04553069]
[1723832537469,0.04878451,139.39,139.37,61.98]
[1723832538168,0.04878451,139.39,139.38,3.5867]
[1723832538349,0.04878451,139.39,139.37,61.98]
[1723832539364,3.63538451,139.39,139.36,0.04553069]
[1723832539569,0.04878451,139.39,139.36,0.04553069]
[1723832540063,3.5867,139.38,139.36,0.04553069]
[1723832540261,0.04878451,139.39,139.36,0.04553069]
[1723832540663,3.63548451,139.39,139.36,0.04553069]
[1723832540869,0.04878451,139.39,139.36,0.04553069]
[1723832541259,3.5867,139.38,139.36,0.04553069]
[1723832541465,0.04878451,139.39,139.36,0.04553069]
[1723832541661,7.80728451,139.39,139.36,0.04553069]
[1723832541866,7.80728451,139.39,139.28,61.98]
[1723832542063,1.3203,139.38,139.28,61.98]
[1723832542778,1.3203,139.38,139.26,61.98]
[1723832542779,63.3003,139.38,139.26,61.98]
[1723832543066,0.05298371,139.34,139.32,0.04765264]
[1723832543370,6.49298371,139.34,139.32,0.04765264]
[1723832543960,3.588,139.33,139.32,0.04765264]
[1723832544165,3.51178436,139.33,139.32,0.04765264]
[1723832544367,6.49298371,139.34,139.32,62.02765264]
[1723832544864,0.05298371,139.34,139.33,3.588]
[1723832546165,0.05298371,139.34,139.32,65.61575264]
[1723832546366,0.05298371,139.34,139.32,62.02765264]
[1723832546649,0.05298371,139.34,139.32,65.61575264]
[1723832546970,0.05298371,139.34,139.32,62.02765264]
[1723832547567,0.05298371,139.34,139.33,3.588]
[1723832547969,10.00712351,139.4,139.33,61.98]
[1723832548264,7.15352351,139.4,139.37,61.98]
[1723832548479,3.56712351,139.4,139.37,61.98]
[1723832548661,3.5866,139.39,139.35,3.5873]
[1723832548867,10.10259134,139.42,139.34,61.98]
[1723832549370,0.05000458,139.38,139.36,0.05028938]
[1723832549870,0.05000458,139.38,139.36,3.63748938]
[1723832550268,0.05000458,139.38,139.36,0.05028938]
[1723832552678,3.587,139.37,139.36,0.05028938]
[1723832552971,0.05000458,139.38,139.36,0.05028938]
[1723832553186,3.63690458,139.38,139.36,0.05028938]
[1723832553569,0.05000458,139.38,139.36,0.05028938]
[1723832553981,6.44,139.42,139.37,51.65]
[1723832554171,1.3072,139.43,139.4,51.65]
[1723832554473,3.5846,139.47,139.42,51.65]
[1723832554691,6.44,139.49,139.44,51.65]
[1723832555374,0.05389934,139.48,139.45,0.04881681]
[1723832555577,3.5846,139.47,139.45,0.04881681]
[1723832556973,0.05389934,139.48,139.45,0.04881681]
[1723832557272,13.654908,139.49,139.46,51.65]
[1723832557273,6.44,139.49,139.46,51.65]
[1723832557473,3.5828,139.54,139.49,3.5838]
[1723832557688,1.3059,139.59,139.51,51.65]
[1723832557875,0.26346304,139.58,139.49,51.65]
[1723832558074,3.5834,139.51,139.47,51.65]
[1723832558267,3.59986956,139.5,139.47,51.65]
[1723832558469,3.5826,139.55,139.49,51.65]
[1723832558676,1.3059,139.59,139.54,51.65]
[1723832559078,4.92915731,139.59,139.54,51.65]
[1723832559279,4.92915731,139.59,139.52,51.65]
[1723832559469,4.92915731,139.59,139.49,51.65]
[1723832559776,51.65,139.56,139.45,51.65]
[1723832560079,3.56482346,139.56,139.45,61.99]
[1723832560280,61.99,139.57,139.45,61.99]
[1723832560678,65.56772909,139.57,139.45,61.99]
[1723832560885,61.99,139.55,139.43,61.99]
[1723832561078,0.05513166,139.52,139.5,0.04951609]
[1723832561379,3.5838,139.5,139.45,3.5849]
[1723832561583,3.63580446,139.52,139.45,61.99]
[1723832561877,10.023,139.53,139.47,3.5843]
[1723832562078,6.44,139.53,139.45,61.99]
[1723832562581,3.5839,139.49,139.48,0.0544099]
[1723832562783,0.05402018,139.5,139.4,61.99]
[1723832563140,3.5846,139.47,139.42,3.5855]
[1723832563421,3.5846,139.47,139.43,61.99]
[1723832563599,3.5846,139.47,139.42,3.5855]
[1723832563771,6.44,139.48,139.4,61.99]
[1723832563981,6.44,139.48,139.39,61.99]
[1723832563982,0.04834168,139.46,139.43,62.04316727]
[1723832564171,0.04834168,139.46,139.43,0.05316727]
[1723832564374,3.68179441,139.46,139.43,0.05316727]
[1723832564571,3.68179441,139.46,139.36,6.44]
[1723832564572,1.416,139.45,139.36,65.5771]
[1723832565074,3.5859,139.42,139.37,3.5869]
[1723832565582,10.0255,139.43,139.38,3.5867]
[1723832565779,0.04928182,139.41,139.38,0.05187733]
[1723832566082,0.04928182,139.41,139.38,3.63847733]
[1723832566686,0.04928182,139.41,139.39,61.99]
[1723832567178,0.04928182,139.41,139.4,3.5862]
[1723832567779,7.856,139.45,139.39,61.99]
[1723832567780,6.44,139.45,139.41,3.5859]
[1723832567976,6.44,139.45,139.41,61.99]
[1723832568377,10.025,139.45,139.41,65.576]
[1723832568625,6.44,139.45,139.41,61.99]
[1723832568781,6.44,139.48,139.41,61.99]
[1723832569083,0.04717866,139.44,139.42,3.63163812]
[1723832569285,0.04717866,139.44,139.42,0.04603812]
[1723832569786,3.70837768,139.44,139.42,0.04603812]
[1723832570087,3.5854,139.43,139.42,0.04603812]
[1723832570272,0.04717866,139.44,139.42,0.04603812]
[1723832570984,0.04717866,139.44,139.43,61.99]
[1723832571907,0.04717866,139.44,139.42,0.04603812]
[1723832572683,3.5854,139.43,139.42,0.04603812]
[1723832573584,0.04717866,139.44,139.42,0.04603812]
[1723832575686,3.63237866,139.44,139.42,0.04603812]
[1723832575884,0.04717866,139.44,139.42,0.04603812]
[1723832576116,9.052,139.43,139.36,61.99]
[1723832576482,3.5861,139.41,139.36,65.5771]
[1723832576824,9.052,139.43,139.34,61.99]
[1723832576983,1.3483,139.42,139.34,61.99]
[1723832577186,0.05520986,139.4,139.37,0.04705563]
[1723832577491,3.5869,139.38,139.37,0.04705563]
[1723832578379,3.5865,139.39,139.37,0.04705563]
[1723832578687,3.67173967,139.4,139.37,0.04705563]
[1723832579396,0.05520986,139.4,139.37,0.04705563]
[1723832580429,0.05520986,139.4,139.38,61.99]
[1723832580762,1.3848,139.46,139.38,61.99]
[1723832580890,1.3848,139.46,139.37,0.04705563]
[1723832580891,1.3848,139.46,139.41,61.99]
[1723832581288,4.94115965,139.46,139.41,61.99]
[1723832581499,6.44,139.47,139.44,61.99]
[1723832581500,10.0245,139.47,139.44,61.99]
[1723832581895,0.0459985,139.45,139.42,0.04651265]
[1723832582089,0.0459985,139.45,139.44,51.67]
[1723832582792,1.3848,139.5,139.44,51.67]
[1723832583096,1.4122,139.52,139.39,58.11]
[1723832583097,1.4122,139.52,139.46,51.67]
[1723832583437,4.9954,139.52,139.49,51.67]
[1723832583599,3.65025204,139.51,139.49,51.67]
[1723832583784,3.70438475,139.51,139.49,51.71599307]
[1723832584099,0.05413271,139.51,139.49,51.71599307]
[1723832584285,3.63753271,139.51,139.49,51.71599307]
[1723832584894,3.5836,139.5,139.49,0.04599307]
[1723832585800,3.63763271,139.51,139.49,0.04599307]
[1723832585989,0.05413271,139.51,139.49,0.04599307]
[1723832586391,3.63763271,139.51,139.49,0.04599307]
[1723832586624,0.05413271,139.51,139.49,0.04599307]
[1723832587797,3.63763271,139.51,139.49,0.04599307]
[1723832588992,0.05413271,139.51,139.44,51.67]
[1723832589198,0.05413271,139.51,139.42,51.67]
[1723832589390,0.05413271,139.51,139.39,58.09]
[1723832589391,0.05413271,139.51,139.44,51.67]
[1723832589594,3.55662629,139.52,139.47,51.67]
[1723832589793,3.5836,139.51,139.47,51.67]
[1723832589996,3.54479358,139.52,139.46,3.5845]
[1723832590193,6.44,139.53,139.48,0.04813864]
[1723832590194,0.05451258,139.5,139.48,0.04813864]
[1723832590393,3.63821258,139.5,139.48,0.04813864]
[1723832590828,0.05451258,139.5,139.43,51.67]
[1723832590999,0.26356023,139.51,139.43,51.67]
[1723832591303,51.67,139.52,139.43,51.67]
[1723832591600,55.28575145,139.52,139.43,51.67]
[1723832591798,0.26356733,139.51,139.43,51.67]
[1723832591992,0.05387832,139.49,139.46,0.04695023]
[1723832592394,3.60212199,139.52,139.45,51.67]
[1723832592589,0.04970058,139.49,139.46,0.04604373]
[1723832592806,3.60949952,139.49,139.46,0.04604373]
[1723832593801,3.60949952,139.49,139.46,3.63054373]
[1723832594902,3.60949952,139.49,139.46,0.04604373]
[1723832595111,3.5844,139.47,139.46,0.04604373]
[1723832595302,7.7314,139.48,139.41,55.2558]
[1723832595512,7.7314,139.48,139.41,51.67]
[1723832595703,3.5848,139.46,139.41,51.67]
[1723832596041,3.5848,139.46,139.41,55.2558]
[1723832596204,7.7314,139.48,139.39,51.67]
[1723832596510,0.05536674,139.45,139.42,0.05181084]
[1723832598403,3.64046674,139.45,139.42,0.05181084]
[1723832598609,0.05536674,139.45,139.42,0.05181084]
[1723832600712,3.5854,139.43,139.42,0.05181084]
[1723832600907,10.0054,139.43,139.42,0.05181084]
[1723832602016,0.05536674,139.45,139.42,0.05181084]
[1723832602218,10.0465935,139.45,139.42,0.05181084]
[1723832602514,6.47536674,139.45,139.42,0.05181084]
[1723832602735,10.06046674,139.45,139.42,0.05181084]
[1723832603221,0.05536674,139.45,139.42,0.05181084]
[1723832603515,0.05536674,139.45,139.43,51.67]
[1723832604112,0.05536674,139.45,139.44,3.5852]
[1723832604508,6.42,139.5,139.43,51.67]
[1723832604701,6.42,139.5,139.46,51.67]
[1723832604909,3.52009271,139.49,139.46,51.67]
[1723832605441,6.42,139.5,139.47,3.5843]
[1723832605611,0.04813512,139.49,139.47,3.5843]
[1723832605804,0.04813512,139.49,139.46,51.72025002]
[1723832605805,0.04813512,139.49,139.48,51.67]
[1723832607103,0.04813512,139.49,139.46,55.30485002]
[1723832607520,0.04813512,139.49,139.46,51.72025002]
[1723832608515,0.04813512,139.49,139.46,0.05025002]
[1723832608715,3.5842,139.48,139.46,0.05025002]
[1723832608905,0.04813512,139.49,139.46,0.05025002]
[1723832609417,6.46813512,139.49,139.46,0.05025002]
[1723832609643,10.05223512,139.49,139.46,0.05025002]
[1723832610109,6.46813512,139.49,139.46,0.05025002]
[1723832610317,6.46813512,139.49,139.4,51.67]
[1723832610518,1.2772,139.48,139.4,51.67]
[1723832610738,3.5851,139.45,139.4,55.2562]
[1723832611013,1.2772,139.48,139.4,51.67]
[1723832611308,51.93362689,139.47,139.38,51.67]
[1723832611522,51.67,139.47,139.43,0.04833119]
[1723832611724,3.5852,139.44,139.43,0.04833119]
[1723832611908,10.0052,139.44,139.43,0.04833119]
[1723832612115,6.42,139.44,139.38,51.67]
[1723832612630,3.5859,139.42,139.38,51.67]
[1723832612815,6.42,139.44,139.38,51.67]
[1723832613221,0.05058533,139.42,139.4,0.0486296]
[1723832613923,0.05058533,139.42,139.4,51.7186296]
[1723832614937,6.42,139.44,139.42,51.67]
[1723832616017,6.42,139.44,139.42,55.2556]
[1723832616219,6.42,139.44,139.42,51.67]
[1723832616414,6.47350524,139.44,139.42,51.67]
[1723832616819,0.05350524,139.44,139.42,51.67]
[1723832617223,0.05350524,139.44,139.42,55.2556]
[1723832617719,0.05350524,139.44,139.42,51.67]
[1723832617919,0.05350524,139.44,139.4,51.7186296]
[1723832618420,3.63880524,139.44,139.4,51.7186296]
[1723832618620,0.05350524,139.44,139.4,0.0486296]
[1723832619124,6.47350524,139.44,139.4,0.0486296]
[1723832619823,1.3781,139.43,139.4,0.0486296]
[1723832620133,3.5865,139.39,139.34,55.2576]
[1723832620313,3.5865,139.39,139.34,51.67]
[1723832620520,7.16972062,139.39,139.34,51.67]
[1723832620721,3.58322062,139.39,139.32,78.74418993]
[1723832620925,6.42,139.38,139.31,51.67]
[1723832621225,0.05162452,139.37,139.34,0.04961063]
[1723832621411,3.61730553,139.36,139.34,0.04961063]
[1723832621816,0.05162452,139.37,139.34,0.04961063]
[1723832622228,3.5874,139.36,139.34,0.04961063]
[1723832622419,0.05162452,139.37,139.34,0.04961063]
[1723832622621,3.56021714,139.37,139.34,0.04961063]
[1723832622819,0.05162452,139.37,139.34,0.04961063]
[1723832623261,4.0055,139.43,139.36,51.67]
[1723832623527,6.42,139.41,139.37,51.67]
[1723832623730,2.6642,139.43,139.4,51.67]
[1723832624229,6.2498,139.43,139.4,51.67]
[1723832624529,2.71914493,139.43,139.4,51.72445713]
[1723832624827,3.5857,139.42,139.4,0.05445713]
[1723832625223,2.71914493,139.43,139.4,0.05445713]
[1723832625842,3.5859,139.42,139.4,0.05445713]
[1723832626085,2.71914493,139.43,139.4,0.05445713]
[1723832626232,54.38914493,139.43,139.33,51.67]
[1723832626544,54.38914493,139.43,139.33,55.2579]
[1723832626545,3.5869,139.38,139.33,55.2579]
[1723832626726,10.04386608,139.38,139.33,51.67]
[1723832626933,6.42,139.38,139.31,51.67]
[1723832627135,3.5874,139.36,139.31,55.2584]
[1723832627335,7.22884376,139.36,139.33,0.04900061]
[1723832627832,3.64144376,139.36,139.33,0.04900061]
[1723832628331,3.64144376,139.36,139.33,3.63690061]
[1723832628531,0.05493957,139.36,139.33,55.30690061]
[1723832630832,0.05493957,139.36,139.34,3.5878]
[1723832632135,0.05493957,139.36,139.33,51.71900061]
[1723832632543,0.05493957,139.36,139.35,55.2575]
[1723832632743,6.42,139.38,139.35,55.2575]